[Event "Titled Tuesday Blitz August 1 Late 2023"]
[White "Haitin, Ilja"]
[Black "Jimenez Jimenez, Leandro"]
[WhiteFideId "4501764"]
[BlackFideId "6415253"]
[WhiteElo "2384"]
[BlackElo "2502"]
[Result "1-0"]
[Round "9"]
[TimeControl "180+1"]
[Date "2023.08.01"]
[WhiteClock "0:00:33"]
[BlackClock "0:00:00"]
[Board "72"]

1. Nf3 {[%clk 0:03:00]}  Nf6 {[%clk 0:02:55]} 2. b3 {[%clk 0:03:00]}  g6 {[%clk 0:02:54]} 3. Bb2 {[%clk 0:03:00]}  Bg7 {[%clk 0:02:54]} 4. e3 {[%clk 0:03:01]}  O-O {[%clk 0:02:52]} 5. d4 {[%clk 0:03:01]}  d6 {[%clk 0:02:52]} 6. Be2 {[%clk 0:03:02]}  c5 {[%clk 0:02:52]} 7. O-O {[%clk 0:02:50]}  cxd4 {[%clk 0:02:50]} 8. Nxd4 {[%clk 0:02:51]}  Nc6 {[%clk 0:02:48]} 9. Nxc6 {[%clk 0:02:48]}  bxc6 {[%clk 0:02:49]} 10. c4 {[%clk 0:02:48]}  c5 {[%clk 0:02:48]} 11. Nc3 {[%clk 0:02:48]}  Bb7 {[%clk 0:02:46]} 12. Bf3 {[%clk 0:02:48]}  Ne4 {[%clk 0:02:29]} 13. Rc1 {[%clk 0:02:41]}  Nxc3 {[%clk 0:02:27]} 14. Bxc3 {[%clk 0:02:41]}  Bxf3 {[%clk 0:02:27]} 15. Qxf3 {[%clk 0:02:40]}  Bxc3 {[%clk 0:02:28]} 16. Rxc3 {[%clk 0:02:41]}  Qa5 {[%clk 0:02:28]} 17. Rc2 {[%clk 0:02:41]}  Qc7 {[%clk 0:02:23]} 18. h4 {[%clk 0:02:41]}  a5 {[%clk 0:02:23]} 19. h5 {[%clk 0:02:41]}  Kg7 {[%clk 0:02:22]} 20. Qf4 {[%clk 0:02:21]}  a4 {[%clk 0:02:12]} 21. h6+ {[%clk 0:02:21]}  Kg8 {[%clk 0:02:13]} 22. Rc3 {[%clk 0:01:53]}  Rfb8 {[%clk 0:02:05]} 23. Rd1 {[%clk 0:01:44]}  axb3 {[%clk 0:02:03]} 24. axb3 {[%clk 0:01:43]}  Ra3 {[%clk 0:01:59]} 25. Rdd3 {[%clk 0:01:29]}  Ra1+ {[%clk 0:01:44]} 26. Kh2 {[%clk 0:01:29]}  Rb1 {[%clk 0:01:39]} 27. e4 {[%clk 0:01:28]}  Ra8 {[%clk 0:01:31]} 28. Rf3 {[%clk 0:01:27]}  f6 {[%clk 0:01:30]} 29. Qd2 {[%clk 0:01:08]}  d5+ {[%clk 0:01:24]} 30. g3 {[%clk 0:01:01]}  d4 {[%clk 0:01:24]} 31. Rc1 {[%clk 0:01:01]}  Raa1 {[%clk 0:01:19]} 32. Rxb1 {[%clk 0:00:59]}  Rxb1 {[%clk 0:01:20]} 33. Qa2 {[%clk 0:00:57]}  Re1 {[%clk 0:01:08]} 34. Qa8+ {[%clk 0:00:43]}  Kf7 {[%clk 0:01:07]} 35. Qh8 {[%clk 0:00:44]}  Rxe4 {[%clk 0:01:03]} 36. Rxf6+ {[%clk 0:00:42]}  exf6 {[%clk 0:00:56]} 37. Qxh7+ {[%clk 0:00:42]}  Ke6 {[%clk 0:00:57]} 38. Qxc7 {[%clk 0:00:42]}  d3 {[%clk 0:00:57]} 39. Qxc5 {[%clk 0:00:36]}  Re5 {[%clk 0:00:52]} 40. Qd4 {[%clk 0:00:33]}  Rh5+ {[%clk 0:00:00]} 41. Kg2 {[%clk 0:00:33]} 1-0


[Site "https://www.chess.com"]

[Event "Titled Tuesday Blitz August 1 Late 2023"]
[White "Crispin Ferreras, Darvi Abraham"]
[Black "Jovic, Stanoje"]
[WhiteFideId "6402771"]
[BlackFideId "905020"]
[WhiteElo "2358"]
[BlackElo "2500"]
[Result "0-1"]
[Round "9"]
[TimeControl "180+1"]
[Date "2023.08.01"]
[WhiteClock "0:00:00"]
[BlackClock "0:00:15"]
[Board "73"]

1. e4 {[%clk 0:03:00]}  c6 {[%clk 0:02:59]} 2. d4 {[%clk 0:03:00]}  d5 {[%clk 0:02:59]} 3. exd5 {[%clk 0:03:01]}  cxd5 {[%clk 0:02:58]} 4. Bd3 {[%clk 0:03:01]}  Nc6 {[%clk 0:02:58]} 5. c3 {[%clk 0:03:02]}  g6 {[%clk 0:02:58]} 6. Bf4 {[%clk 0:03:01]}  Nh6 {[%clk 0:02:58]} 7. Nf3 {[%clk 0:02:57]}  f6 {[%clk 0:02:58]} 8. Nbd2 {[%clk 0:02:48]}  Nf7 {[%clk 0:02:58]} 9. O-O {[%clk 0:02:44]}  Bg7 {[%clk 0:02:58]} 10. Re1 {[%clk 0:02:44]}  O-O {[%clk 0:02:57]} 11. h3 {[%clk 0:02:42]}  e5 {[%clk 0:02:57]} 12. dxe5 {[%clk 0:02:38]}  fxe5 {[%clk 0:02:57]} 13. Bg3 {[%clk 0:02:28]}  e4 {[%clk 0:02:54]} 14. Nxe4 {[%clk 0:02:28]}  dxe4 {[%clk 0:02:54]} 15. Bxe4 {[%clk 0:02:29]}  Bf5 {[%clk 0:02:48]} 16. Bd5 {[%clk 0:02:00]}  Qb6 {[%clk 0:02:45]} 17. Ng5 {[%clk 0:01:56]}  Qxb2 {[%clk 0:02:31]} 18. Bd6 {[%clk 0:01:51]}  Qxc3 {[%clk 0:02:14]} 19. Rc1 {[%clk 0:01:47]}  Qd4 {[%clk 0:02:06]} 20. Bxf8 {[%clk 0:01:46]}  Rxf8 {[%clk 0:01:51]} 21. Nxf7 {[%clk 0:01:35]}  Qxd1 {[%clk 0:01:32]} 22. Rexd1 {[%clk 0:00:46]}  Rxf7 {[%clk 0:01:13]} 23. g4 {[%clk 0:00:45]}  Bc8 {[%clk 0:01:06]} 24. Bb3 {[%clk 0:00:32]}  Bf6 {[%clk 0:00:43]} 25. Rd6 {[%clk 0:00:19]}  Kg7 {[%clk 0:00:33]} 26. Bxf7 {[%clk 0:00:18]}  Kxf7 {[%clk 0:00:34]} 27. f3 {[%clk 0:00:14]}  Be6 {[%clk 0:00:32]} 28. Kg2 {[%clk 0:00:09]}  Be5 {[%clk 0:00:26]} 29. Rd3 {[%clk 0:00:07]}  a5 {[%clk 0:00:25]} 30. Rb1 {[%clk 0:00:06]}  Nb4 {[%clk 0:00:22]} 31. Re3 {[%clk 0:00:06]}  Bd4 {[%clk 0:00:19]} 32. Ree1 {[%clk 0:00:05]}  Bxa2 {[%clk 0:00:18]} 33. Rbd1 {[%clk 0:00:05]}  Nc6 {[%clk 0:00:17]} 34. Rc1 {[%clk 0:00:02]}  Bb3 {[%clk 0:00:15]} 35. Red1 {[%clk 0:00:03]}  Bxd1 {[%clk 0:00:14]} 36. Rxd1 {[%clk 0:00:04]}  a4 {[%clk 0:00:15]} 37. Kg3 {[%clk 0:00:04]}  a3 {[%clk 0:00:15]} 38. f4 {[%clk 0:00:00]}  a2 {[%clk 0:00:15]} 0-1


[Site "https://www.chess.com"]

[Event "Titled Tuesday Blitz August 1 Late 2023"]
[White "Vafin, Ayrat"]
[Black "Hirneise, Jens"]
[WhiteFideId "4146530"]
[BlackFideId "24614734"]
[WhiteElo "2297"]
[BlackElo "2459"]
[Result "0-1"]
[Round "9"]
[TimeControl "180+1"]
[Date "2023.08.01"]
[WhiteClock "0:00:05"]
[BlackClock "0:00:23"]
[Board "80"]

1. Nf3 {[%clk 0:03:00]}  d5 {[%clk 0:02:59]} 2. g3 {[%clk 0:03:01]}  Nd7 {[%clk 0:02:58]} 3. d4 {[%clk 0:02:59]}  Nb6 {[%clk 0:02:58]} 4. Bg2 {[%clk 0:03:00]}  Nf6 {[%clk 0:02:59]} 5. O-O {[%clk 0:02:59]}  g6 {[%clk 0:02:57]} 6. Bg5 {[%clk 0:02:54]}  Bg7 {[%clk 0:02:57]} 7. Bxf6 {[%clk 0:02:54]}  exf6 {[%clk 0:02:56]} 8. Nbd2 {[%clk 0:02:48]}  O-O {[%clk 0:02:56]} 9. e4 {[%clk 0:02:44]}  dxe4 {[%clk 0:02:55]} 10. Nxe4 {[%clk 0:02:45]}  f5 {[%clk 0:02:55]} 11. Nc5 {[%clk 0:02:43]}  Nd7 {[%clk 0:02:46]} 12. Nxd7 {[%clk 0:02:34]}  Qxd7 {[%clk 0:02:43]} 13. Ne5 {[%clk 0:02:31]}  Qb5 {[%clk 0:02:42]} 14. Qd3 {[%clk 0:01:10]}  Qxd3 {[%clk 0:02:11]} 15. Nxd3 {[%clk 0:01:11]}  Bxd4 {[%clk 0:02:11]} 16. c3 {[%clk 0:01:11]}  Bb6 {[%clk 0:02:08]} 17. Rfe1 {[%clk 0:01:06]}  Rd8 {[%clk 0:02:07]} 18. Nf4 {[%clk 0:00:55]}  c6 {[%clk 0:02:02]} 19. Re2 {[%clk 0:00:49]}  Bd7 {[%clk 0:02:00]} 20. Rd1 {[%clk 0:00:45]}  Be8 {[%clk 0:01:57]} 21. Rde1 {[%clk 0:00:43]}  Kf8 {[%clk 0:01:55]} 22. h4 {[%clk 0:00:43]}  h5 {[%clk 0:01:53]} 23. Re7 {[%clk 0:00:36]}  Rd7 {[%clk 0:01:49]} 24. Rxd7 {[%clk 0:00:20]}  Bxd7 {[%clk 0:01:49]} 25. Nd3 {[%clk 0:00:20]}  Re8 {[%clk 0:01:46]} 26. Rxe8+ {[%clk 0:00:19]}  Kxe8 {[%clk 0:01:44]} 27. Kf1 {[%clk 0:00:20]}  Ke7 {[%clk 0:01:43]} 28. Ke2 {[%clk 0:00:21]}  Be6 {[%clk 0:01:44]} 29. b3 {[%clk 0:00:21]}  Bc7 {[%clk 0:01:44]} 30. f4 {[%clk 0:00:20]}  Kd6 {[%clk 0:01:40]} 31. c4 {[%clk 0:00:20]}  Bb6 {[%clk 0:01:37]} 32. Bf3 {[%clk 0:00:20]}  Bd4 {[%clk 0:01:37]} 33. Ne1 {[%clk 0:00:20]}  a5 {[%clk 0:01:37]} 34. Nc2 {[%clk 0:00:20]}  Bc3 {[%clk 0:01:32]} 35. Ne3 {[%clk 0:00:19]}  Kc5 {[%clk 0:01:32]} 36. Nc2 {[%clk 0:00:19]}  a4 {[%clk 0:01:29]} 37. Kd3 {[%clk 0:00:19]}  Ba5 {[%clk 0:01:23]} 38. Bg2 {[%clk 0:00:19]}  axb3 {[%clk 0:01:17]} 39. axb3 {[%clk 0:00:20]}  b5 {[%clk 0:01:16]} 40. cxb5 {[%clk 0:00:19]}  cxb5 {[%clk 0:01:17]} 41. Nd4 {[%clk 0:00:18]}  Be1 {[%clk 0:01:06]} 42. Nxe6+ {[%clk 0:00:12]}  fxe6 {[%clk 0:01:06]} 43. Bb7 {[%clk 0:00:11]}  Bxg3 {[%clk 0:01:04]} 44. Bc8 {[%clk 0:00:10]}  Kd6 {[%clk 0:01:03]} 45. Ba6 {[%clk 0:00:09]}  Bxf4 {[%clk 0:00:42]} 46. Bxb5 {[%clk 0:00:10]}  Ke7 {[%clk 0:00:41]} 47. b4 {[%clk 0:00:07]}  Bg3 {[%clk 0:00:36]} 48. Bc6 {[%clk 0:00:07]}  Bxh4 {[%clk 0:00:36]} 49. b5 {[%clk 0:00:08]}  Bf2 {[%clk 0:00:36]} 50. Ke2 {[%clk 0:00:07]}  Bb6 {[%clk 0:00:36]} 51. Kf3 {[%clk 0:00:08]}  g5 {[%clk 0:00:35]} 52. Kg3 {[%clk 0:00:08]}  h4+ {[%clk 0:00:35]} 53. Kh3 {[%clk 0:00:07]}  Kd6 {[%clk 0:00:35]} 54. Bb7 {[%clk 0:00:07]}  Ke5 {[%clk 0:00:31]} 55. Bc8 {[%clk 0:00:08]}  Kf6 {[%clk 0:00:30]} 56. Bd7 {[%clk 0:00:08]}  e5 {[%clk 0:00:27]} 57. Bc6 {[%clk 0:00:08]}  e4 {[%clk 0:00:27]} 58. Bd5 {[%clk 0:00:08]}  Ke5 {[%clk 0:00:27]} 59. Bc6 {[%clk 0:00:09]}  Kf4 {[%clk 0:00:28]} 60. Bd7 {[%clk 0:00:08]}  e3 {[%clk 0:00:28]} 61. Kg2 {[%clk 0:00:07]}  g4 {[%clk 0:00:27]} 62. Kf1 {[%clk 0:00:07]}  h3 {[%clk 0:00:27]} 63. Bc6 {[%clk 0:00:07]}  Kg3 {[%clk 0:00:25]} 64. Ke2 {[%clk 0:00:04]}  f4 {[%clk 0:00:25]} 65. Bh1 {[%clk 0:00:04]}  f3+ {[%clk 0:00:25]} 66. Kf1 {[%clk 0:00:05]}  e2+ {[%clk 0:00:24]} 67. Ke1 {[%clk 0:00:05]}  Ba5# {[%clk 0:00:23]} 0-1


[Site "https://www.chess.com"]

[Event "Titled Tuesday Blitz August 1 Late 2023"]
[White "De Souza, Cristiano Gomes"]
[Black "Arnold, Ken"]
[WhiteFideId "2151758"]
[BlackFideId "2056836"]
[WhiteElo "2245"]
[BlackElo "2429"]
[Result "0-1"]
[Round "9"]
[TimeControl "180+1"]
[Date "2023.08.01"]
[WhiteClock "0:00:35"]
[BlackClock "0:00:42"]
[Board "81"]

1. d4 {[%clk 0:03:00]}  d5 {[%clk 0:02:57]} 2. c4 {[%clk 0:02:59]}  e6 {[%clk 0:02:57]} 3. Nf3 {[%clk 0:02:58]}  Nf6 {[%clk 0:02:57]} 4. Nc3 {[%clk 0:02:56]}  Be7 {[%clk 0:02:52]} 5. Bg5 {[%clk 0:02:52]}  h6 {[%clk 0:02:49]} 6. Bxf6 {[%clk 0:02:52]}  Bxf6 {[%clk 0:02:48]} 7. e3 {[%clk 0:02:53]}  O-O {[%clk 0:02:47]} 8. Rc1 {[%clk 0:02:52]}  dxc4 {[%clk 0:02:45]} 9. Bxc4 {[%clk 0:02:51]}  c5 {[%clk 0:02:28]} 10. dxc5 {[%clk 0:02:47]}  Qa5 {[%clk 0:02:26]} 11. O-O {[%clk 0:02:44]}  Qxc5 {[%clk 0:02:18]} 12. Ne4 {[%clk 0:02:36]}  Qe7 {[%clk 0:02:16]} 13. Nxf6+ {[%clk 0:02:35]}  Qxf6 {[%clk 0:02:15]} 14. Qe2 {[%clk 0:02:35]}  Nc6 {[%clk 0:02:03]} 15. Rfd1 {[%clk 0:02:29]}  e5 {[%clk 0:02:02]} 16. h3 {[%clk 0:02:28]}  Be6 {[%clk 0:01:58]} 17. Bxe6 {[%clk 0:02:20]}  Qxe6 {[%clk 0:01:58]} 18. a3 {[%clk 0:02:19]}  Rfd8 {[%clk 0:01:47]} 19. Qb5 {[%clk 0:02:17]}  e4 {[%clk 0:01:25]} 20. Qxb7 {[%clk 0:01:48]}  Rxd1+ {[%clk 0:01:22]} 21. Rxd1 {[%clk 0:01:46]}  Rb8 {[%clk 0:01:22]} 22. Qc7 {[%clk 0:01:26]}  exf3 {[%clk 0:01:02]} 23. Rd6 {[%clk 0:01:25]}  Rc8 {[%clk 0:00:57]} 24. Rxe6 {[%clk 0:00:45]}  Rxc7 {[%clk 0:00:56]} 25. Re8+ {[%clk 0:00:46]}  Kh7 {[%clk 0:00:55]} 26. gxf3 {[%clk 0:00:46]}  a5 {[%clk 0:00:52]} 27. Ra8 {[%clk 0:00:40]}  Kg6 {[%clk 0:00:45]} 28. Ra6 {[%clk 0:00:38]}  Kf5 {[%clk 0:00:44]} 29. b4 {[%clk 0:00:39]}  axb4 {[%clk 0:00:44]} 30. axb4 {[%clk 0:00:39]}  Nxb4 {[%clk 0:00:42]} 31. Kg2 {[%clk 0:00:35]}  Nxa6 {[%clk 0:00:42]} 0-1


[Site "https://www.chess.com"]

[Event "Titled Tuesday Blitz August 1 Late 2023"]
[White "Osmonbekov, Talaibek"]
[Black "Ai, Evan"]
[WhiteFideId "2017253"]
[BlackFideId "2094770"]
[WhiteElo "2220"]
[BlackElo "2328"]
[Result "1/2-1/2"]
[Round "9"]
[TimeControl "180+1"]
[Date "2023.08.01"]
[WhiteClock "0:00:19"]
[BlackClock "0:00:35"]
[Board "82"]

1. d4 {[%clk 0:03:00]}  Nf6 {[%clk 0:02:57]} 2. Nc3 {[%clk 0:02:59]}  d5 {[%clk 0:02:55]} 3. Bf4 {[%clk 0:02:59]}  e6 {[%clk 0:02:54]} 4. e3 {[%clk 0:03:00]}  a6 {[%clk 0:02:53]} 5. Nf3 {[%clk 0:03:00]}  Bb4 {[%clk 0:02:52]} 6. Bd3 {[%clk 0:02:59]}  Nbd7 {[%clk 0:02:49]} 7. O-O {[%clk 0:02:57]}  c5 {[%clk 0:02:46]} 8. dxc5 {[%clk 0:02:48]}  Nxc5 {[%clk 0:02:47]} 9. Ne2 {[%clk 0:02:45]}  O-O {[%clk 0:02:44]} 10. Ned4 {[%clk 0:02:11]}  Nxd3 {[%clk 0:02:42]} 11. cxd3 {[%clk 0:02:11]}  Bd6 {[%clk 0:02:42]} 12. Ne5 {[%clk 0:01:59]}  Qc7 {[%clk 0:02:20]} 13. Rc1 {[%clk 0:01:59]}  Qb8 {[%clk 0:02:19]} 14. Ng4 {[%clk 0:01:48]}  Nxg4 {[%clk 0:01:51]} 15. Bxd6 {[%clk 0:01:47]}  Qxd6 {[%clk 0:01:52]} 16. Qxg4 {[%clk 0:01:42]}  e5 {[%clk 0:01:51]} 17. Nf5 {[%clk 0:01:37]}  Qf6 {[%clk 0:01:51]} 18. e4 {[%clk 0:01:27]}  Kh8 {[%clk 0:01:37]} 19. f4 {[%clk 0:01:14]}  g6 {[%clk 0:01:14]} 20. Qh4 {[%clk 0:01:13]}  Qb6+ {[%clk 0:01:14]} 21. Kh1 {[%clk 0:01:03]}  gxf5 {[%clk 0:01:14]} 22. fxe5 {[%clk 0:00:56]}  dxe4 {[%clk 0:01:11]} 23. d4 {[%clk 0:00:27]}  Qg6 {[%clk 0:01:09]} 24. Rc3 {[%clk 0:00:24]}  Qg4 {[%clk 0:01:02]} 25. Qe7 {[%clk 0:00:19]}  Qg7 {[%clk 0:00:43]} 26. Rg3 {[%clk 0:00:20]}  Qh6 {[%clk 0:00:41]} 27. Rh3 {[%clk 0:00:19]}  Qg7 {[%clk 0:00:38]} 28. Rg3 {[%clk 0:00:19]}  Qh6 {[%clk 0:00:35]} 29. Rh3 {[%clk 0:00:19]}  Qg7 {[%clk 0:00:35]} 30. Rg3 {[%clk 0:00:19]} 1/2-1/2


[Site "https://www.chess.com"]

[Event "Titled Tuesday Blitz August 1 Late 2023"]
[White "Sun, Rick"]
[Black "Slavin, Alexey"]
[WhiteFideId "30909481"]
[BlackFideId "24104388"]
[WhiteElo "2592"]
[BlackElo "2351"]
[Result "1-0"]
[Round "9"]
[TimeControl "180+1"]
[Date "2023.08.01"]
[WhiteClock "0:00:07"]
[BlackClock "0:00:15"]
[Board "83"]

1. d4 {[%clk 0:03:00]}  Nc6 {[%clk 0:03:00]} 2. Nc3 {[%clk 0:02:57]}  e5 {[%clk 0:02:58]} 3. d5 {[%clk 0:02:57]}  Nce7 {[%clk 0:02:58]} 4. f4 {[%clk 0:02:54]}  exf4 {[%clk 0:02:56]} 5. Bxf4 {[%clk 0:02:54]}  Ng6 {[%clk 0:02:56]} 6. Bg3 {[%clk 0:02:52]}  Bc5 {[%clk 0:02:56]} 7. Qd3 {[%clk 0:02:49]}  Nf6 {[%clk 0:02:49]} 8. h4 {[%clk 0:02:34]}  d6 {[%clk 0:02:34]} 9. Nf3 {[%clk 0:02:13]}  h5 {[%clk 0:02:09]} 10. O-O-O {[%clk 0:02:04]}  a6 {[%clk 0:01:54]} 11. e4 {[%clk 0:01:47]}  O-O {[%clk 0:01:48]} 12. e5 {[%clk 0:01:39]}  Ng4 {[%clk 0:01:47]} 13. e6 {[%clk 0:01:15]}  f5 {[%clk 0:01:12]} 14. Kb1 {[%clk 0:00:53]}  Bf2 {[%clk 0:01:04]} 15. Ng5 {[%clk 0:00:43]}  Qf6 {[%clk 0:00:56]} 16. Be2 {[%clk 0:00:23]}  Bxg3 {[%clk 0:00:41]} 17. Qxg3 {[%clk 0:00:24]}  f4 {[%clk 0:00:41]} 18. Qe1 {[%clk 0:00:20]}  Ne3 {[%clk 0:00:39]} 19. Bxh5 {[%clk 0:00:18]}  Nxd1 {[%clk 0:00:36]} 20. Qxd1 {[%clk 0:00:18]}  Ne5 {[%clk 0:00:35]} 21. Bf7+ {[%clk 0:00:14]}  Nxf7 {[%clk 0:00:31]} 22. exf7+ {[%clk 0:00:13]}  Kh8 {[%clk 0:00:28]} 23. Nce4 {[%clk 0:00:08]}  Qh6 {[%clk 0:00:26]} 24. Qd2 {[%clk 0:00:07]}  Bf5 {[%clk 0:00:21]} 25. Qxf4 {[%clk 0:00:07]}  Bxe4 {[%clk 0:00:18]} 26. Qxe4 {[%clk 0:00:08]}  Qf6 {[%clk 0:00:15]} 27. Qh7# {[%clk 0:00:07]} 1-0


[Site "https://www.chess.com"]

[Event "Titled Tuesday Blitz August 1 Late 2023"]
[White "Lopez Gracia, Fernando"]
[Black "Gabdushev, Ruslan"]
[WhiteFideId "2207184"]
[BlackFideId "4137833"]
[WhiteElo "2318"]
[BlackElo "2429"]
[Result "1-0"]
[Round "9"]
[TimeControl "180+1"]
[Date "2023.08.01"]
[WhiteClock "0:00:17"]
[BlackClock "0:00:00"]
[Board "89"]

1. e4 {[%clk 0:03:00]}  g6 {[%clk 0:02:59]} 2. d4 {[%clk 0:03:00]}  Bg7 {[%clk 0:02:59]} 3. Nc3 {[%clk 0:02:59]}  c6 {[%clk 0:02:59]} 4. f4 {[%clk 0:02:56]}  d5 {[%clk 0:02:58]} 5. e5 {[%clk 0:02:56]}  h5 {[%clk 0:02:58]} 6. Nf3 {[%clk 0:02:55]}  Nh6 {[%clk 0:02:57]} 7. Be3 {[%clk 0:02:51]}  Na6 {[%clk 0:02:56]} 8. h3 {[%clk 0:02:50]}  Bf5 {[%clk 0:02:54]} 9. Bd3 {[%clk 0:02:47]}  Nb4 {[%clk 0:02:52]} 10. Bxf5 {[%clk 0:02:46]}  Nxf5 {[%clk 0:02:52]} 11. Bf2 {[%clk 0:02:46]}  Bh6 {[%clk 0:02:47]} 12. a3 {[%clk 0:02:45]}  Na6 {[%clk 0:02:45]} 13. Qd2 {[%clk 0:02:38]}  Ng7 {[%clk 0:02:30]} 14. g4 {[%clk 0:02:33]}  Ne6 {[%clk 0:02:26]} 15. Be3 {[%clk 0:02:23]}  Bg7 {[%clk 0:02:23]} 16. O-O-O {[%clk 0:02:19]}  Nf8 {[%clk 0:02:06]} 17. f5 {[%clk 0:02:17]}  Qd7 {[%clk 0:02:05]} 18. Nh4 {[%clk 0:02:09]}  Nc7 {[%clk 0:02:00]} 19. Rdf1 {[%clk 0:02:07]}  O-O-O {[%clk 0:01:47]} 20. f6 {[%clk 0:02:07]}  exf6 {[%clk 0:01:42]} 21. exf6 {[%clk 0:02:08]}  Bxf6 {[%clk 0:01:41]} 22. Rxf6 {[%clk 0:02:07]}  hxg4 {[%clk 0:01:41]} 23. hxg4 {[%clk 0:02:06]}  Qxg4 {[%clk 0:01:40]} 24. Rf4 {[%clk 0:01:59]}  Qd7 {[%clk 0:01:39]} 25. Rhf1 {[%clk 0:01:57]}  f5 {[%clk 0:01:37]} 26. Nf3 {[%clk 0:01:55]}  Nce6 {[%clk 0:01:34]} 27. Ne5 {[%clk 0:01:54]}  Qh7 {[%clk 0:01:32]} 28. R4f2 {[%clk 0:01:51]}  Nd7 {[%clk 0:01:29]} 29. Bf4 {[%clk 0:01:42]}  Nf6 {[%clk 0:01:28]} 30. Rg1 {[%clk 0:01:34]}  Rhg8 {[%clk 0:01:06]} 31. Bg5 {[%clk 0:01:18]}  Rdf8 {[%clk 0:01:02]} 32. Bxf6 {[%clk 0:01:15]}  Rxf6 {[%clk 0:01:02]} 33. Qe3 {[%clk 0:01:07]}  Qh4 {[%clk 0:00:58]} 34. Nf3 {[%clk 0:00:49]}  Qh7 {[%clk 0:00:46]} 35. Qe5 {[%clk 0:00:48]}  Qg7 {[%clk 0:00:38]} 36. Ng5 {[%clk 0:00:44]}  Nc7 {[%clk 0:00:35]} 37. Rh2 {[%clk 0:00:30]}  Re8 {[%clk 0:00:30]} 38. Qf4 {[%clk 0:00:29]}  Rh8 {[%clk 0:00:25]} 39. Rgh1 {[%clk 0:00:28]}  Rxh2 {[%clk 0:00:18]} 40. Rxh2 {[%clk 0:00:28]}  Ne8 {[%clk 0:00:15]} 41. Rh7 {[%clk 0:00:25]}  Qf8 {[%clk 0:00:15]} 42. Qe5 {[%clk 0:00:20]}  Nd6 {[%clk 0:00:13]} 43. Ne6 {[%clk 0:00:19]}  Rxe6 {[%clk 0:00:10]} 44. Qxe6+ {[%clk 0:00:19]}  Kb8 {[%clk 0:00:09]} 45. Qe7 {[%clk 0:00:18]}  Qxe7 {[%clk 0:00:07]} 46. Rxe7 {[%clk 0:00:19]}  f4 {[%clk 0:00:07]} 47. Kd1 {[%clk 0:00:18]}  Nc4 {[%clk 0:00:05]} 48. b3 {[%clk 0:00:16]}  Ne3+ {[%clk 0:00:05]} 49. Rxe3 {[%clk 0:00:16]}  fxe3 {[%clk 0:00:05]} 50. Ke2 {[%clk 0:00:17]}  Kc7 {[%clk 0:00:04]} 51. Kxe3 {[%clk 0:00:18]}  Kd6 {[%clk 0:00:04]} 52. b4 {[%clk 0:00:18]}  Ke6 {[%clk 0:00:04]} 53. Kf4 {[%clk 0:00:19]}  b6 {[%clk 0:00:04]} 54. Ne2 {[%clk 0:00:18]}  Kf6 {[%clk 0:00:00]} 55. c3 {[%clk 0:00:17]} 1-0


[Site "https://www.chess.com"]

[Event "Titled Tuesday Blitz August 1 Late 2023"]
[White "Kula, Robert"]
[Black "Carrasco Miranda, Andres"]
[WhiteFideId "1101218"]
[BlackFideId "3405990"]
[WhiteElo "2256"]
[BlackElo "2423"]
[Result "1-0"]
[Round "9"]
[TimeControl "180+1"]
[Date "2023.08.01"]
[WhiteClock "0:00:18"]
[BlackClock "0:00:00"]
[Board "90"]

1. e4 {[%clk 0:03:00]}  e5 {[%clk 0:02:53]} 2. c4 {[%clk 0:02:59]}  Nf6 {[%clk 0:02:50]} 3. Nc3 {[%clk 0:02:59]}  Bc5 {[%clk 0:02:50]} 4. d3 {[%clk 0:02:54]}  a5 {[%clk 0:02:49]} 5. Bg5 {[%clk 0:02:44]}  h6 {[%clk 0:02:48]} 6. Bh4 {[%clk 0:02:43]}  c6 {[%clk 0:02:49]} 7. Nf3 {[%clk 0:02:28]}  d6 {[%clk 0:02:47]} 8. Be2 {[%clk 0:02:25]}  Na6 {[%clk 0:02:46]} 9. d4 {[%clk 0:02:22]}  exd4 {[%clk 0:02:43]} 10. Nxd4 {[%clk 0:02:22]}  Qe7 {[%clk 0:02:30]} 11. O-O {[%clk 0:02:14]}  Qe5 {[%clk 0:02:20]} 12. Nf3 {[%clk 0:02:04]}  Qe6 {[%clk 0:02:13]} 13. Bd3 {[%clk 0:01:57]}  g5 {[%clk 0:02:10]} 14. Bg3 {[%clk 0:01:56]}  Nh5 {[%clk 0:02:09]} 15. a3 {[%clk 0:01:38]}  Nxg3 {[%clk 0:01:50]} 16. hxg3 {[%clk 0:01:37]}  Qf6 {[%clk 0:01:50]} 17. e5 {[%clk 0:01:31]}  dxe5 {[%clk 0:01:34]} 18. Ne4 {[%clk 0:01:24]}  Qg7 {[%clk 0:01:23]} 19. Nxc5 {[%clk 0:01:23]}  Nxc5 {[%clk 0:01:24]} 20. Nxe5 {[%clk 0:01:23]}  O-O {[%clk 0:01:18]} 21. Nf3 {[%clk 0:01:04]}  Bg4 {[%clk 0:01:14]} 22. Be2 {[%clk 0:01:03]}  Qxb2 {[%clk 0:01:09]} 23. Rb1 {[%clk 0:00:54]}  Qxa3 {[%clk 0:01:04]} 24. Qd6 {[%clk 0:00:49]}  Qa2 {[%clk 0:00:28]} 25. Qxh6 {[%clk 0:00:34]}  Qxe2 {[%clk 0:00:27]} 26. Qxg5+ {[%clk 0:00:34]}  Kh7 {[%clk 0:00:25]} 27. Qh4+ {[%clk 0:00:34]}  Kg7 {[%clk 0:00:23]} 28. Qxg4+ {[%clk 0:00:34]}  Kh8 {[%clk 0:00:24]} 29. Qh5+ {[%clk 0:00:33]}  Kg8 {[%clk 0:00:24]} 30. Qg5+ {[%clk 0:00:33]}  Kh8 {[%clk 0:00:24]} 31. Qh6+ {[%clk 0:00:32]}  Kg8 {[%clk 0:00:23]} 32. Rbe1 {[%clk 0:00:27]}  Qc2 {[%clk 0:00:19]} 33. Re5 {[%clk 0:00:25]}  Ne6 {[%clk 0:00:18]} 34. Rh5 {[%clk 0:00:22]}  f6 {[%clk 0:00:05]} 35. Re1 {[%clk 0:00:20]}  Ng7 {[%clk 0:00:00]} 36. Re7 {[%clk 0:00:18]} 1-0


[Site "https://www.chess.com"]